Cogmind - Beta 11.1 @@@ ROGUE MODE // 2022.08.21 @ 12:59:16 Player: Zntyl Result: Destroyed by Y-45 Defender with Heavy Assault Rifle Performance ------------- Evolutions (1) 500 Regions Visited (4) 800 Robots Destroyed (57) 285 Value Destroyed (1451) 1451 Prototype IDs (7) 140 Alien Tech Used (0) 0 Bonus (188) 188 TOTAL SCORE: 3364 Bonus ------- High Alert Combat Kills 140 Follower Combat Kills 67 Friendly Fire -19 Cogmind --------- Core Integrity 0/400 Matter 300/300 Energy 200/200 System Corruption 0% Temperature Cool (53) Movement Rolling (105) Ox1 Location -9/Storage Parts ------- > --- POWER (1) -------- Cold Fusion Reactor > --- PROPULSION (2) --- Armored Wheel > --- UTILITY (4) ------ Weapon Shielding Hardened Light Armor Plating > --- WEAPON (2) ------- Medium Laser Small Laser > --- INVENTORY (5) ---- Cooled Ion Engine Cooled Plasma Cannon Rocket Launcher Rocket Launcher Peak State ------------ > --- POWER ------------ Cooled Ion Engine > --- PROPULSION ------- Armored Wheel Armored Wheel > --- UTILITY ---------- Weapon Shielding Medium Armor Plating Hardened Light Armor Plating Hacking Suite > --- WEAPON ----------- Medium Laser Cooled Plasma Cannon > --- INVENTORY -------- Small Laser Improved Medium Laser Rocket Launcher Rocket Launcher [Rating: 22] Favorites ----------- Power Ion Engine Engine Ion Engine Power Core Light Nuclear Core Reactor Cold Fusion Reactor Propulsion Aluminum Leg Leg Aluminum Leg Wheel Armored Wheel Hover Unit Hover Unit Utility Sensor Array Device Sensor Array Hackware Hacking Suite Protection Hardened Light Armor Plating Weapon Medium Laser Energy Gun Medium Laser Energy Cannon Cooled Plasma Cannon Ballistic Cannon Light Cannon Launcher Rocket Launcher Build | -11 -10 -10 -9 -9 ------- Run | Scr Mat Min Mat Sto Slots Evolved 2 | . . . 2 . Power . | . . . . . Propulsion . | . . . . . Utility 2 | . . . 2 . Weapon . | . . . . . Parts Attached 44 | 5 3 8 25 3 Power 9 | 1 . 3 4 1 Engine 7 | 1 . 2 4 . Core 1 | . . 1 . . Reactor 1 | . . . . 1 Propulsion 11 | 2 . 2 7 . Treads . | . . . . . Leg 4 | 2 . 2 . . Wheel 5 | . . . 5 . Hover 2 | . . . 2 . Flight . | . . . . . Utility 6 | . 1 . 5 . Device 1 | . 1 . . . Storage . | . . . . . Processor . | . . . . . Hackware 1 | . . . 1 . Protection 4 | . . . 4 . Artifact . | . . . . . Weapon 18 | 2 2 3 9 2 Energy Gun 12 | 2 2 2 5 1 Energy Cannon 1 | . . . . 1 Ballistic Gun . | . . . . . Ballistic Cannon 1 | . . 1 . . Launcher 4 | . . . 4 . Special Weapon . | . . . . . Impact Weapon . | . . . . . Slashing Weapon . | . . . . . Piercing Weapon . | . . . . . Special Melee Weapon . | . . . . . Unidentified Prototypes 4 | . . . 2 2 Parts Lost 13 | . . 3 7 3 Power 2 | . . . 2 . Propulsion 5 | . . 1 3 1 Utility 3 | . . . 1 2 Weapon 3 | . . 2 1 . Highest Loss Streak 3 | . . 2 3 2 To Critical Strikes . | . . . . . Average Slot Usage (%) 84 | . 84 84 78 96 Engine 8 | . 14 7 7 7 Core 3 | . . 6 2 . Leg 16 | . 28 27 5 . Wheel 7 | . . . 12 22 Device 8 | . 13 14 3 . Hackware 4 | . . . 10 8 Protection 8 | . . . 11 32 Energy Gun 20 | . 28 19 17 22 Ballistic Cannon 4 | . . 8 2 . Naked Turns . | . . . . . Heaviest Build 28 | 8 12 12 26 28 Greatest Support 24 | 20 20 20 24 24 Greatest Overweight (x) 3 | 2 . . 3 1 Average Overweight (x) . | . . . . . Largest Inventory Capacity 5 | 5 5 5 5 5 Average Capacity 5 | 5 5 5 5 5 Most Carried 5 | 4 3 3 5 5 Average Carried 2 | . 1 1 2 3 Final Capacity 5 | 5 5 5 5 5 Final Carried 4 | . 2 2 3 4 Class Distribution -------------------- 91% | Mutant 8% | Scavenger-Mutant Dominant Class ---------------- Mutant | -10/Materials Mutant | -10/Mines Mutant | -9/Materials Mutant | -9/Storage Resources | -11 -10 -10 -9 -9 ----------- Run | Scr Mat Min Mat Sto Matter Collected 894 | 230 40 141 279 204 Remotely . | . . . . . Salvage Created 1462 | . 134 422 641 265 Parts 115 | . 10 32 59 14 Haulers Intercepted 1 | . . . 1 . Recyclers Shooed 1 | . . . 1 . Parts Field Recycled . | . . . . . Retrieved Matter . | . . . . . Parts Self-Destructed . | . . . . . Prevented . | . . . . . Kills | -11 -10 -10 -9 -9 ------- Run | Scr Mat Min Mat Sto Combat Hostiles Destroyed 47 | . 3 15 24 5 Guns 23 | . 3 9 6 5 Cannons 6 | . . 4 2 . AOE 18 | . . 2 16 . Classes Destroyed 9 | . 1 2 6 . Worker 2 | . . . 2 . Builder 1 | . . . 1 . Tunneler 2 | . . 1 1 . Hauler 1 | . . . 1 . Operator 1 | . . . 1 . Watcher 3 | . . . 3 . Swarmer 18 | . . 8 10 . Grunt 19 | . 3 7 8 1 Sentry 10 | . . . 6 4 Best Kill Streak 8 | . 3 4 8 2 Combat Bots Only 6 | . 3 3 6 2 Max Kills in Single Turn 3 | . 1 1 3 1 Gunslinging . | . . . . . Exploded 2 | . . 1 2 . Melee . | . . . . . Uniques/NPCs Destroyed . | . . . . . Combat | -11 -10 -10 -9 -9 -------- Run | Scr Mat Min Mat Sto Damage Taken 2087 | . 52 529 956 550 Core 519 | . . 110 319 90 Absorbed by Shields . | . . . . . Redirected to Shielding 11 | . . . 3 8 Core Remaining (%) 78 | 100 . 56 . . Volleys Fired 124 | . 6 41 56 21 Largest 2 | . 2 2 2 2 Hottest 106 | . 90 90 106 106 Shots Fired 230 | . 12 73 103 42 Gun 187 | . 12 60 73 42 Cannon 29 | . . 13 16 . Launcher 14 | . . . 14 . Special . | . . . . . Kinetic 29 | . . 13 16 . Thermal 137 | . . 22 73 42 Explosive 14 | . . . 14 . Electromagnetic 50 | . 12 38 . . Robot Hit Streak 15 | . 5 8 11 15 Robot Miss Streak 5 | . 2 5 4 2 Penetration Max . | . . . . . Secondary Targets 3 | . . 2 1 . Max Gunslinging Chain 1 | . . 1 1 . Shots Hit Robots 149 | . 9 50 61 29 Core Hits 102 | . 7 32 52 11 Critical Kills . | . . . . . Critical Parts Destroyed . | . . . . . Critical Strikes 4 | . . 1 3 . Burn 4 | . . 1 3 . Melee Attacks . | . . . . . Impact . | . . . . . Slashing . | . . . . . Piercing . | . . . . . Sneak Attacks . | . . . . . Combat Hostiles . | . . . . . Follow-up Attacks . | . . . . . Damage Inflicted 3570 | . 125 793 2265 387 Guns 1757 | . 117 592 661 387 Cannons 334 | . . 139 195 . Explosions 1471 | . . 62 1409 . Melee . | . . . . . Ramming 8 | . 8 . . . Kinetic 334 | . . 139 195 . Thermal 1304 | . . 256 661 387 Explosive 1409 | . . . 1409 . Electromagnetic 515 | . 117 398 . . Impact . | . . . . . Slashing . | . . . . . Piercing . | . . . . . Highest Corruption 1 | . 1 1 . . Average Corruption 1 | . 1 1 . . Corruption Purged . | . . . . . Corruption Blocked . | . . . . . Effects 11 | . . 11 . . Matter Fused 3 | . . 3 . . Data Loss (minor) 2 | . . 2 . . Data Loss (major) 3 | . . 3 . . Alerts 1 | . . 1 . . Weapon Failures 2 | . . 2 . . Overload Shots . | . . . . . Overflow Damage 84 | . . . 84 . Projectiles . | . . . . . Explosions 84 | . . . 84 . Melee . | . . . . . Knockbacks 2 | . . 1 1 . Impact . | . . . . . Kinetic 2 | . . 1 1 . Secondary . | . . . . . Self-Inflicted Damage 22 | . . . 22 . Shots 1 | . . . 1 . Rammed . | . . . . . Targets Rammed 2 | . 2 . . . Kicked 2 | . 2 . . . Crushed . | . . . . . Highest Temperature 342 | . 108 268 342 243 Average Temperature 87 | . 48 76 89 108 Received Heat Transfer 768 | . 33 216 372 147 Siege Activations . | . . . . . Robots Corrupted . | . . . . . Combat Hostiles . | . . . . . Parts Fried 1 | . . 1 . . Impact Corruptions . | . . . . . Robots Melted . | . . . . . Combat Hostiles . | . . . . . Parts Melted 7 | . . 2 2 3 Heat Transferred 3560 | . . 718 1829 1013 Parts Sabotaged . | . . . . . Parts Stolen . | . . . . . Parts Stripped . | . . . . . Power Chain Reactions 2 | . . 2 . . Missiles Intercepted . | . . . . . Alert | -11 -10 -10 -9 -9 ------- Run | Scr Mat Min Mat Sto Peak Influence 773 | . 108 324 773 527 Initial 269 | . . 42 48 269 Average 290 | . 32 206 460 400 Maximum Alert Level 3 | . . 1 3 2 Low Security (%) 45 | 100 100 52 31 . Level 1 25 | . . 47 1 56 Level 2 23 | . . . 52 43 Level 3 5 | . . . 15 . Level 4 . | . . . . . Level 5 . | . . . . . High Security . | . . . . . Max Security . | . . . . . Squads Dispatched 4 | . 2 . 2 . Investigation 1 | . 1 . . . Extermination . | . . . . . Reinforcement 3 | . 1 . 2 . Assault . | . . . . . Garrison . | . . . . . Intercept . | . . . . . Searches Triggered . | . . . . . Construction Impeded 1 | . . . 1 . Haulers Reinforced . | . . . . . Active Scanning Responses . | . . . . . Cargo Convoy Interrupts . | . . . . . Stealth | -11 -10 -10 -9 -9 --------- Run | Scr Mat Min Mat Sto Distress Signals 5 | . 1 . 2 2 Communications Jammed . | . . . . . Distress Signals . | . . . . . Times Spotted 62 | . 7 18 30 7 Peak Tracking Total 5 | . 4 3 5 3 Tactical Retreats 3 | . 1 1 . 1 Traps | -11 -10 -10 -9 -9 ------- Run | Scr Mat Min Mat Sto Traps Triggered 3 | . 2 . . 1 Indirectly . | . . . . . Trap Hack Attempts . | . . . . . Triggered . | . . . . . Disarmed . | . . . . . Reprogrammed . | . . . . . Reused . | . . . . . Traps Extracted . | . . . . . Installed . | . . . . . Triggered . | . . . . . Machines | -11 -10 -10 -9 -9 ---------- Run | Scr Mat Min Mat Sto Machines Disabled 1 | . . . 1 . Max in Single Turn 1 | . . . 1 . Machines Sabotaged . | . . . . . Garrisons Compromised . | . . . . . Overloaded Fab Kills . | . . . . . Hacking | -11 -10 -10 -9 -9 --------- Run | Scr Mat Min Mat Sto Machines Accessed 16 | . 4 1 5 6 Terminals 12 | . 3 1 4 4 Fabricators . | . . . . . Repair Stations . | . . . . . Recycling Units 3 | . 1 . 1 1 Scanalyzers . | . . . . . Garrison Access 1 | . . . . 1 Total Hacks 29 | . 7 2 12 8 Successful 18 | . 3 . 9 6 Failed 11 | . 4 2 3 2 Catastrophic 3 | . 2 . . 1 Database Lockouts . | . . . . . Manual 15 | . . . 10 5 Terminals 25 | . 6 2 11 6 Fabricators . | . . . . . Repair Stations . | . . . . . Recycling Units 3 | . 1 . 1 1 Scanalyzers . | . . . . . Garrison Access 1 | . . . . 1 Terminal Hacks 9 | . 2 . 3 4 Prototype ID Bank 2 | . 1 . 1 . Open Door 2 | . . . . 2 Level Access Points 2 | . 1 . . 1 Branch Access Points 1 | . . . 1 . Locate Traps 1 | . . . . 1 Recall Reinforcements 1 | . . . 1 . Fabricator Hacks . | . . . . . Repair Station Hacks . | . . . . . Recycling Unit Hacks 3 | . 1 . 1 1 Retrieve Components 3 | . 1 . 1 1 Scanalyzer . | . . . . . Garrison Access Hacks . | . . . . . Unauthorized Hacks 6 | . . . 5 1 Terminals 6 | . . . 5 1 Assimilate 2 | . . . 1 1 Botnet 4 | . . . 4 . Fabricators . | . . . . . Repair Stations . | . . . . . Recycling Units . | . . . . . Scanalyzers . | . . . . . Garrison Access . | . . . . . Data Cores Recovered . | . . . . . Used . | . . . . . Hacking Detections 8 | . 2 1 2 3 Full Trace Events 1 | . 1 . . . Feedback Events . | . . . . . Feedback Blocked . | . . . . . Robot Schematics Acquired . | . . . . . Robots Built . | . . . . . Authchips . | . . . . . Time . | . . . . . Total Robot Build Rating . | . . . . . Part Schematics Acquired . | . . . . . Parts Built . | . . . . . Authchips . | . . . . . Time . | . . . . . Total Part Build Rating . | . . . . . Parts Repaired . | . . . . . Time . | . . . . . Parts Recycled . | . . . . . Recycled Matter . | . . . . . Retrieved Matter . | . . . . . Retrieved Components 12 | . 1 . 10 1 Parts Scanalyzed . | . . . . . Part Schematics Acquired . | . . . . . Parts Damaged . | . . . . . Bothacking | -11 -10 -10 -9 -9 ------------ Run | Scr Mat Min Mat Sto Used RIF Installer . | . . . . . Robots Hacked . | . . . . . Non-combat . | . . . . . Combat . | . . . . . Robot Hacks Applied . | . . . . . Relay Couplers Released . | . . . . . Fabnet Peak Effective % . | . . . . . Robots Rewired . | . . . . . Allies Hacked . | . . . . . Hacks Repelled . | . . . . . Allies | -11 -10 -10 -9 -9 -------- Run | Scr Mat Min Mat Sto Total Allies 3 | . . 3 . . Largest Group 3 | . . 3 1 . Highest-Rated Group 40 | . . 40 16 . Highest-Rated Ally 16 | . . 16 16 . Total Orders 2 | . . 1 1 . GUARD 2 | . . 1 1 . Ally Attacks 22 | . . 17 5 . Total Damage 255 | . . 190 65 . Kills 3 | . . 2 1 . Allies Corrupted . | . . . . . Allies Melted . | . . . . . Intel | -11 -10 -10 -9 -9 ------- Run | Scr Mat Min Mat Sto Robot Analysis Total . | . . . . . Derelict Logs Recovered 1 | . . 1 . . Drone Launches . | . . . . . Drone Recoveries . | . . . . . Exploration | -11 -10 -10 -9 -9 ------------- Run | Scr Mat Min Mat Sto Turns Passed 2904 | 52 399 1075 975 403 Spaces Moved 2045 | 40 310 731 667 297 Core 24 | 11 . . 13 . Treads . | . . . . . Legs 1223 | 29 310 731 153 . Wheels 695 | . . . 398 297 Hover 103 | . . . 103 . Flight . | . . . . . Fastest Speed 50 | 50 120 120 56 90 Average Speed 109 | 105 120 120 96 104 Slowest Speed 200 | 150 120 120 200 105 Overloaded Moves . | . . . . . Propulsion Burnouts . | . . . . . Robots Hopped . | . . . . . Cave-ins Triggered . | . . . . . Exploration Rate (%) 48 | 3 36 99 49 53 Regions Visited 4 Branch Regions 2 Pre-discovered Areas 2 | . . 2 . . Known Exits Taken 2 | . . 1 1 . Unknown Exits Taken 2 | 1 1 . . . Scrap Searched 1 | . . 1 . . Spaces Dug 4 | . . . 4 . Terrain Destroyed 92 | . . 9 83 . Melee . | . . . . . Projectile . | . . . . . AOE 92 | . . 9 83 . Terrain Rammed . | . . . . . Walls Destroyed . | . . . . . Machines Disabled . | . . . . . Actions | -11 -10 -10 -9 -9 --------- Run | Scr Mat Min Mat Sto Total 2483 | 49 325 856 902 351 Wait 206 | . . 65 119 22 Move 2041 | 39 309 730 666 297 Hop . | . . . . . Pick Up 36 | 5 3 7 18 3 Fast Attach . | . . . . . Attach 45 | 5 3 8 26 3 Detach 16 | . 2 1 10 3 Swap . | . . . . . Drop 13 | . . 4 7 2 Fire 124 | . 6 41 56 21 Melee . | . . . . . Ram . | . . . . . Kick 2 | . 2 . . . Crush . | . . . . . Escape Stasis . | . . . . . Rewire . | . . . . . Trap . | . . . . . Miscellaneous . | . . . . . Route ------- -11/Scrapyard -10/Materials (discovered 5 exits: Mat x3 / *Min x2) -10/Mines (discovered 3 exits: *Mat x2 / [*Exi]) -9/Materials (discovered 4 exits: *Mat / *Min / *Sto x2) -9/Storage (discovered 1 exit: Mat) History --------- Turn | Location | Event 6 | -11/Scrapyard | Discovered new exit (range 16) 53 | -11/Scrapyard | Entered Materials 218 | -10/Materials | Discovered new exit (range 11) 303 | -10/Materials | Discovered new exit (range 14) 316 | -10/Materials | Build established: Mutant 345 | -10/Materials | Identified exit to Materials 452 | -10/Materials | Entered Mines 523 | -10/Mines | Discovered exit to Materials (range 12) 656 | -10/Mines | Received a Rocket Launcher from a helpful Derelict 676 | -10/Mines | Learned location of Mines (-9) 838 | -10/Mines | Assisted by bots powering up and referring to "LRC-V3" 859 | -10/Mines | Discovered exit to Materials (range 9) 990 | -10/Mines | Deemed a non-threat by the Exiles lab entrance 990 | -10/Mines | Discovered new exit (range 5) 1115 | -10/Mines | Learned location of Storage (-9) 1527 | -10/Mines | Entered Materials 1527 | -9/Materials | Accompanied by 1 ally 1527 | -9/Materials | Evolved 2 slots: Utility x2 1846 | -9/Materials | Discovered new exit (range 16) 1884 | -9/Materials | Core integrity fell below 50% 1906 | -9/Materials | Discovered new exit (range 14) 1909 | -9/Materials | Lost 3 parts (1p1n1u) 1988 | -9/Materials | Discovered new exit (range 5) 2019 | -9/Materials | Discovered new exit (range 13) 2370 | -9/Materials | Identified exit to Mines 2370 | -9/Materials | Identified exit to Storage 2502 | -9/Materials | Entered Storage 2619 | -9/Storage | Core integrity fell below 20% 2849 | -9/Storage | Identified exit to Materials 2905 | -9/Storage | Destroyed by Y-45 Defender with Heavy Assault Rifle Last Messages --------------- 02833_ R-06 Scavenger collects Lgt. Treads. 02834_ U-05 Engineer builds a Wall. 02838_ R-06 Scavenger collects Wheel. 02839_ U-05 Engineer builds a Door. 02840_ U-05 Engineer lays Concrete. 02841_ R-06 Scavenger collects Lgt. Armor Plating. 02841_ U-05 Engineer lays Concrete. 02843_ U-05 Engineer builds a Wall. 02849_ Connecting with Terminal... >>Traps(Locate) Found 1 trap in 1 array: 1x Shock Trap Map updated. >>Access(Main) Found 1 level access point to Materials: (7,59) Map updated. 02855_ Connecting with Repair Station... 02899_ Med. Armor Plating destroyed. 02905_ Arm. Wheel destroyed. Map ----- +----------------------------------------------------+ | ?????????????????????????????# ###????##+### | | ???????????????????????????### #T###??? ?# | | ?????????????????????????###T# + #?? # | | ?????????????????????????# + #####? # | | ?????????????????????????##### #????? + | | ?????????????????????????????# #????# # | | ?????????????????????????????# #????# # | | ?????????????????????????????# ########+#### | | ?????????????????????????????# # # ##? #??# | | ?????????????????????????#####[ %#[ ## #??# | | ?????????????????????????# * = [ =+= ]] ## #???? | | ???????????????????????###+########%#! ]] ## #???+ | | ???????????????????????# ! #???#*! ]] ## #?? | | ???????????????????????# ! #???#! ## #?? | | ???????????????????????# #???# # # #### #? | | ???????????????????????#! #???# ######## ## | | ???????????????????????# #??## ##??# + | | ???????????????????????# #??# #??# ## | | ???????????????????????########### #### #? ## | | ?????????????????????????# """ #/ #??#? | | ?????????????????????????# """ ## #???? | | ?????????????????????????# """ ## #???? | | ??????????????????######?# ## ##### | | ?????????????????## ! # ## # "== | | ?????????????????#Y #+##+##### # == | | ??????????????????# ^@ + "== | | ??????????????????# "Y" ##########"T"#" "####T### | | ??????????????????# """ ?????????#####"R"#??###?? | | ??????????????????#! ??????????????#"""#??????? | | ??????????????????######??????????????#####??????? | | ?????????????????????????????????????????????????? | | | | | | | | | | | | | | | | | | | | | | | | | | | | | | | | | | | | | | | +----------------------------------------------------+ Best States ------------- Heat Dissipation 28 Energy Generation 17 Energy Capacity 280 Matter Stores 300 Matter Capacity 300 Sight Range 16 Robot Scan Range 14 Terrain Scan Density 10 Armor Coverage 375 Weapon Shielding 33 Evasion (%) 55 Offensive Hacking 10 Item Schematics ----------------- None Robot Schematics ------------------ None Fabricated ------------ Nothing Alien Tech Used ----------------- None Achievements -------------- None Challenges ------------ None Game ------ Seed MomentumRocketCloak Manual? 0 Play Time 00:27:20 Cumulative 79.1 hours Start 2022.08.21 @ 12:35:26 End 2022.08.21 @ 12:59:16 Sessions 1 Manual Loads 0 Difficulty Rogue Special Mode None Game No. 141 Rogue 81 Adventurer 60 Explorer 0 Win Type - Total 0 Types 0/0/0/0/0/0/0/0/0 Lore% 39 Gallery% 56 Achievement% 53 Wizard Run 0 Options --------- ASCII 0 Keyboard 0 Movement Mouse Keybinds 0 Fullscreen 1 Font 18/SmallcapsGlow Map View 76x50 Tactical HUD 1 Map Filters NONE Filters NONE Steam 1 RUN: 830ca35d-43b2-4b9c-b579-e9c5e72eb9a9